Cogmind - Beta 15 @@@ ROGUE MODE // 2025.08.21 @ 17:50:13 Player: Teratos Result: Destroyed by S-10 Pest with Light Assault Rifle Performance ------------- Evolutions (0) 0 Regions Visited (1) 200 Robots Destroyed (1) 5 Value Destroyed (10) 10 Prototype IDs (0) 0 Alien Tech Used (0) 0 Bonus (0) 0 TOTAL SCORE: 215 Bonus ------- None Cogmind --------- Core Integrity 0/250 Matter 291/300 Energy 161/200 System Corruption 0% Temperature Cool (0) Movement Flying (40) Location -10/Materials Parts ------- > --- POWER (1) -------- (None) > --- PROPULSION (2) --- Flight Unit > --- UTILITY (2) ------ Small Battery > --- WEAPON (2) ------- (None) > --- INVENTORY (5) ---- (None) Peak State ------------ > --- POWER ------------ (None) > --- PROPULSION ------- Wheel Compact Wheel > --- UTILITY ---------- ECM Suite > --- WEAPON ----------- Medium Laser Assault Rifle > --- INVENTORY -------- (None) [Rating: 5] Favorites ----------- Power None Propulsion Compact Wheel Wheel Compact Wheel Flight Unit Flight Unit Utility ECM Suite Device ECM Suite Storage Small Battery Weapon Medium Laser Energy Gun Medium Laser Ballistic Gun Assault Rifle Build | -11 -10 ------- Run | Yrd Mat Slots Evolved . | . . Power . | . . Propulsion . | . . Utility . | . . Weapon . | . . Parts Attached 7 | 4 3 Power . | . . Engine . | . . Core . | . . Reactor . | . . Propulsion 3 | 2 1 Treads . | . . Leg . | . . Wheel 2 | 2 . Hover . | . . Flight 1 | . 1 Utility 2 | . 2 Device 1 | . 1 Storage 1 | . 1 Processor . | . . Hackware . | . . Protection . | . . Artifact . | . . Weapon 2 | 2 . Energy Gun 1 | 1 . Energy Cannon . | . . Ballistic Gun 1 | 1 . Ballistic Cannon . | . . Launcher . | . . Special Weapon . | . . Impact Weapon . | . . Slashing Weapon . | . . Piercing Weapon . | . . Special Melee Weapon . | . . Unidentified Prototypes . | . . Parts Lost 4 | . 4 Power . | . . Propulsion 2 | . 2 Utility . | . . Weapon 2 | . 2 Highest Loss Streak 4 | . 4 To Critical Strikes . | . . Average Backups . | . . Power . | . . Propulsion . | . . Utility . | . . Weapon . | . . Tool/Special . | . . Unused Backups . | . . Power . | . . Propulsion . | . . Utility . | . . Weapon . | . . Tool/Special . | . . Average Slot Usage (%) 49 | . 49 Wheel 21 | . 21 Flight 2 | . 2 Device 1 | . 1 Storage 1 | . 1 Energy Gun 12 | . 12 Ballistic Gun 10 | . 10 Peak Build Rating 5 | 4 5 Average Rating 3 | 2 3 On Entrance 2 | . 4 Naked Turns 1 | . 1 Heaviest Build 6 | 4 6 Greatest Support 26 | 26 26 Greatest Overweight (x) . | . . Average Overweight (x) . | . . Largest Inventory Capacity 5 | 5 5 Average Capacity 5 | 5 5 Most Carried . | . . Average Carried . | . . Final Capacity 5 | 5 5 Final Carried . | . . Class Distribution -------------------- 100% | Mutant Dominant Class ---------------- Mutant | -10/Materials Resources | -11 -10 ----------- Run | Yrd Mat Matter Collected 251 | 240 11 Remotely . | . . Salvage Created 11 | . 11 Parts 2 | . 2 Haulers Intercepted . | . . Recyclers Shooed . | . . Parts Field Recycled . | . . Retrieved Matter . | . . Parts Self-Destructed . | . . Prevented . | . . Kills | -11 -10 ------- Run | Yrd Mat Combat Hostiles Destroyed 1 | . 1 Guns 1 | . 1 Classes Destroyed 1 | . 1 Swarmer 1 | . 1 Best Kill Streak 1 | . 1 Combat Bots Only 1 | . 1 Max Kills in Single Turn 1 | . 1 Gunslinging . | . . Exploded . | . . Melee . | . . Uniques/NPCs Destroyed . | . . Combat | -11 -10 -------- Run | Yrd Mat Hostile Shots Fired 98 | . 98 Missed 35 | . 35 Hits 63 | . 63 Projectile 63 | . 63 Damage Taken 521 | . 521 Core 253 | . 253 Absorbed by Shields . | . . Core Remaining (%) 100 | 100 . Volleys Fired 1 | . 1 Largest 1 | . 1 Hottest 50 | . 50 Shots Fired 1 | . 1 Gun 1 | . 1 Cannon . | . . Launcher . | . . Special . | . . Kinetic . | . . Thermal 1 | . 1 Explosive . | . . Electromagnetic . | . . Robot Hit Streak . | . . Robot Miss Streak 1 | . 1 Penetration Max . | . . Secondary Targets . | . . Shots Hit Robots . | . . Core Hits 1 | . 1 Critical Kills . | . . Critical Parts Destroyed . | . . Critical Strikes . | . . Melee Attacks . | . . Impact . | . . Slashing . | . . Piercing . | . . Sneak Attacks . | . . Combat Hostiles . | . . Follow-up Attacks . | . . Damage Inflicted 12 | . 12 Guns 12 | . 12 Cannons . | . . Explosions . | . . Melee . | . . Ramming . | . . Kinetic . | . . Thermal 12 | . 12 Explosive . | . . Electromagnetic . | . . Impact . | . . Slashing . | . . Piercing . | . . Highest Corruption . | . . Average Corruption . | . . Corruption Purged . | . . Corruption Blocked . | . . Overload Shots . | . . Overflow Damage . | . . Projectiles . | . . Explosions . | . . Melee . | . . Knockbacks . | . . Impact . | . . Kinetic . | . . Secondary . | . . Self-Inflicted Damage . | . . Shots . | . . Rammed . | . . Targets Rammed . | . . Kicked . | . . Crushed . | . . Highest Temperature . | . . Average Temperature . | . . Received Heat Transfer 42 | . 42 Siege Activations . | . . Martial Activations . | . . Shielding Activations . | . . Robots Disrupted . | . . Combat Hostiles . | . . Robots Corrupted . | . . Combat Hostiles . | . . Parts Fried . | . . Impact Corruptions . | . . Robots Melted . | . . Combat Hostiles . | . . Parts Melted . | . . Heat Transferred 37 | . 37 Parts Sabotaged . | . . Parts Stolen . | . . Parts Stripped . | . . Power Chain Reactions . | . . Alert | -11 -10 ------- Run | Yrd Mat Maximum Alert Level . | . . Low Security (%) 100 | 100 100 Level 1 . | . . Level 2 . | . . Level 3 . | . . Level 4 . | . . Level 5 . | . . High Security . | . . Max Security . | . . Peak Influence 65 | . 65 Initial . | . . Average 6 | . 9 Influence Increases 80 | . 80 Destroy 0b10 Robot/C 20 | . 20 Lose Combat Pursuer 60 | . 60 Influence Decreases 45 | . 45 Time Decay 30 | . 30 Lost Part 15 | . 15 Squads Dispatched 3 | . 3 Investigation . | . . Extermination . | . . Reinforcement 3 | . 3 Assault . | . . Garrison . | . . Intercept . | . . Searches Triggered . | . . Construction Impeded . | . . Haulers Reinforced . | . . Active Scanning Responses . | . . Cargo Convoy Interrupts . | . . Stealth | -11 -10 --------- Run | Yrd Mat Distress Signals . | . . Communications Jammed . | . . Distress Signals . | . . Times Spotted 10 | . 10 Peak Tracking Total 7 | . 7 Tactical Retreats 2 | . 2 Traps | -11 -10 ------- Run | Yrd Mat Traps Triggered . | . . Indirectly . | . . Trap Hack Attempts . | . . Triggered . | . . Disarmed . | . . Reprogrammed . | . . Reused . | . . Traps Extracted . | . . Installed . | . . Triggered . | . . Machines | -11 -10 ---------- Run | Yrd Mat Machines Disabled . | . . Max in Single Turn . | . . Machines Repaired . | . . Machines Dismantled . | . . Machines Sabotaged . | . . Overloaded Fab Kills . | . . Hacking | -11 -10 --------- Run | Yrd Mat Machines Accessed . | . . Terminals . | . . Fabricators . | . . Repair Stations . | . . Recycling Units . | . . Scanalyzers . | . . Garrison Access . | . . Total Hacks . | . . Successful . | . . Failed . | . . Catastrophic . | . . Database Lockouts . | . . Manual . | . . Terminals . | . . Fabricators . | . . Repair Stations . | . . Recycling Units . | . . Scanalyzers . | . . Garrison Access . | . . Terminal Hacks . | . . Fabricator Hacks . | . . Repair Station Hacks . | . . Recycling Unit Hacks . | . . Scanalyzer . | . . Garrison Access Hacks . | . . Unauthorized Hacks . | . . Terminals . | . . Fabricators . | . . Repair Stations . | . . Recycling Units . | . . Scanalyzers . | . . Garrison Access . | . . Data Cores Recovered . | . . Used . | . . Hacking Detections . | . . Full Trace Events . | . . Feedback Events . | . . Feedback Blocked . | . . Robot Schematics Acquired . | . . Robots Built . | . . Authchips . | . . Time . | . . Total Robot Build Rating . | . . Part Schematics Acquired . | . . Parts Built . | . . Authchips . | . . Time . | . . Total Part Build Rating . | . . Parts Repaired . | . . Time . | . . Parts Recycled . | . . Recycled Matter . | . . Retrieved Matter . | . . Retrieved Components . | . . Parts Scanalyzed . | . . Part Schematics Acquired . | . . Parts Damaged . | . . Bothacking | -11 -10 ------------ Run | Yrd Mat Used RIF Installer . | . . Robots Hacked . | . . Non-combat . | . . Combat . | . . Robot Hacks Applied . | . . Relay Couplers Released . | . . Fabnet Peak Effective % . | . . Robots Rewired . | . . Allies Hacked . | . . Hacks Repelled . | . . Allies | -11 -10 -------- Run | Yrd Mat Total Allies . | . . Largest Group . | . . Highest-Rated Group . | . . Highest-Rated Ally . | . . Total Orders . | . . Ally Attacks . | . . Total Damage . | . . Kills . | . . Allies Corrupted . | . . Allies Melted . | . . Intel | -11 -10 ------- Run | Yrd Mat Active Infowar (turns) 21 | . 21 ECM 21 | . 21 Robot Analysis Total . | . . Derelict Logs Recovered . | . . Drone Launches . | . . Drone Recoveries . | . . Exploration | -11 -10 ------------- Run | Yrd Mat Turns Passed 294 | 88 206 Spaces Moved 363 | 101 262 Core 44 | 23 21 Treads . | . . Legs . | . . Wheels 253 | 78 175 Hover . | . . Flight 66 | . 66 Fastest Speed 40 | 50 40 Average Speed 76 | 81 74 Slowest Speed 100 | 100 100 Overloaded Moves . | . . Propulsion Burnouts . | . . Robots Hopped 11 | . 11 Potential Cave-ins . | . . Cave-ins Triggered . | . . Exploration Rate (%) 16 | 4 28 Regions Visited 1 Branch Regions . Pre-discovered Areas . | . . Known Exits Taken . | . . Unknown Exits Taken 1 | 1 . Scrap Searched . | . . Spaces Dug . | . . Terrain Destroyed . | . . Melee . | . . Projectile . | . . AOE . | . . Terrain Rammed . | . . Walls Destroyed . | . . Machines Disabled . | . . Actions | -11 -10 --------- Run | Yrd Mat Total 362 | 104 258 Wait . | . . Move 342 | 100 242 Hop 9 | . 9 Pick Up . | . . Fast Attach 8 | 4 4 Attach . | . . Detach . | . . Swap . | . . Drop 2 | . 2 Fire 1 | . 1 Melee . | . . Ram . | . . Kick . | . . Crush . | . . Escape Stasis . | . . Rewire . | . . Trap . | . . Miscellaneous . | . . Route ------- -11/Scrapyard -10/Materials (discovered 1 exit: [*Mat]) History --------- Turn | Location | Event 2 | -11/Scrapyard | Met Revision 17 23 | -11/Scrapyard | Discovered new exit (range 15) 89 | -11/Scrapyard | Entered Materials 90 | -10/Materials | Met a group of wandering Federalists 216 | -10/Materials | Discovered new exit (range 16) 263 | -10/Materials | Core integrity fell below 50% 281 | -10/Materials | Core integrity fell below 20% 295 | -10/Materials | Lost 4 parts (2n2w) 295 | -10/Materials | Destroyed by S-10 Pest with Light Assault Rifle Last Messages --------------- SECURING TERMINAL." 00233_ Wheel destroyed. 00236_ ALERT: Hostiles spotted, dispatching reinforcements to Terminal M006. 00243_ Assault Rifle destroyed. 00253_ Com. Wheel destroyed. 00262_ S-10 Pest destroyed. 00264_ Med. Laser destroyed. 00264_ K-01 Serf collects debris. 00265_ Acquired Flight Unit. 00267_ Acquired 10 matter. Hold RMB on a map location to designate it as a relative view centerpoint. This is especially useful while zoomed, in order to see further in your current direction of exploration. Try it now. 00268_ K-01 Serf collects debris. 00278_ Acquired Sml. Battery. 00278_ K-01 Serf collects debris. 00291_ Acquired 1 matter. Map ----- +----------------------------------------------------+ | ???? +?????????????????????? | | ???? #?????????????????????? | | ???# #?????????????????????? | | ???# #?????????????????????? | | ???# #?????????????????????? | | ???# ^#?????????????????????? | | ???# #?????????????????????? | | #### #?????????????????????? | | #?????????????????????? | | + ????????####### | | #???????????????# # | | #### #???????????????# # | | ???# #???????????????# # | | ???# #???##??????????# # | | ???# #??? ?????????# """# | | ???# #???? ????????# """# | | ???# #????? ???????# """# | | ??## ##????? ?###### k# | | ??# ########+## # """# | | ### # """# | | " / """# | | ### ########+## # # | | ??# #?????? ##* ####g### | | ??###+###?????? ## # # | | ?????????????? ## ss # | | ??????????????"" ## # @ # | | ?????????????""" ## # # | | ?????????????""" ##### # | | ????????????#######???# ! # | | ??????????????????????######## | | ?????????????????????????????? | | ?????????????????????????????? | | ?????????????????????????????? | | | | | | | | | | | | | | | | | | | | | | | | | | | | | | | | | | | +----------------------------------------------------+ Best States ------------- Heat Dissipation 25 Energy Generation 5 Energy Capacity 200 Matter Stores 300 Matter Capacity 300 Sight Range 16 Terrain Scan Density 10 ECM Strength 1 Evasion (%) 62 Item Schematics ----------------- None Robot Schematics ------------------ None Fabricated ------------ Nothing Repaired ---------- Nothing Alien Tech Used ----------------- None Achievements -------------- None Challenges ------------ None Game ------ Seed BattleHugeLegs Manual? 0 Play Time 00:05:51 Cumulative 65.4 hours Start 2025.08.21 @ 17:46:40 End 2025.08.21 @ 17:50:13 Sessions 1 Manual Loads 0 Difficulty Rogue Special Mode None Game No. 147 Rogue 147 Adventurer 0 Explorer 0 Win Type - Total 0 Types 0/0/0/0/0/0/0/0/0/0 Lore% 14 Gallery% 26 Achievement% 26 Wizard Run 0 Options --------- Layout 1 ASCII 0 Keyboard 0 Movement Arrows Keybinds 0 Fullscreen 0 Font 16/Swanston Map View 25x17 Zoom Use 100% Tactical HUD 1 Map Filters NONE Filters NONE Steam 1 RUN: e19a766b-a9b0-48b6-aa57-aae84d7050e1